[Event "Titled Tuesday Blitz January 17 Early 2023"]
[White "Kostiukov, Alexandr"]
[Black "MitzyCaballero"]
[WhiteFideId "14108100"]
[WhiteElo "2271"]
[BlackElo "2235"]
[Result "0-1"]
[Round "11"]
[TimeControl "180+2"]
[Date "2023.01.17"]
[WhiteClock "0:00:03"]
[BlackClock "0:00:17"]

1. e4 {[%clk 0:02:53]}  g6 {[%clk 0:02:59]} 2. d4 {[%clk 0:02:52]}  Bg7 {[%clk 0:03:00]} 3. Nc3 {[%clk 0:02:53]}  d6 {[%clk 0:02:58]} 4. f4 {[%clk 0:02:53]}  a6 {[%clk 0:02:58]} 5. Nf3 {[%clk 0:02:53]}  Nf6 {[%clk 0:02:58]} 6. h3 {[%clk 0:02:49]}  O-O {[%clk 0:02:57]} 7. Bc4 {[%clk 0:02:48]}  b5 {[%clk 0:02:55]} 8. Bb3 {[%clk 0:02:45]}  Bb7 {[%clk 0:02:53]} 9. Qe2 {[%clk 0:02:44]}  b4 {[%clk 0:02:50]} 10. Nd5 {[%clk 0:02:42]}  Nxd5 {[%clk 0:02:34]} 11. exd5 {[%clk 0:02:40]}  Nd7 {[%clk 0:02:33]} 12. O-O {[%clk 0:02:38]}  Nf6 {[%clk 0:02:31]} 13. Qc4 {[%clk 0:02:27]}  a5 {[%clk 0:02:30]} 14. Re1 {[%clk 0:02:14]}  Bxd5 {[%clk 0:02:25]} 15. Qd3 {[%clk 0:02:12]}  Bb7 {[%clk 0:02:16]} 16. a3 {[%clk 0:02:03]}  c5 {[%clk 0:01:39]} 17. axb4 {[%clk 0:01:55]}  axb4 {[%clk 0:01:35]} 18. Rxa8 {[%clk 0:01:51]}  Bxa8 {[%clk 0:01:35]} 19. dxc5 {[%clk 0:01:48]}  dxc5 {[%clk 0:01:35]} 20. Qxd8 {[%clk 0:01:35]}  Rxd8 {[%clk 0:01:36]} 21. Be3 {[%clk 0:01:32]}  Ne4 {[%clk 0:01:30]} 22. Ne5 {[%clk 0:01:24]}  e6 {[%clk 0:01:28]} 23. Ra1 {[%clk 0:01:08]}  Bd5 {[%clk 0:01:21]} 24. Ra7 {[%clk 0:01:00]}  Bxb3 {[%clk 0:01:17]} 25. cxb3 {[%clk 0:01:01]}  Bxe5 {[%clk 0:01:12]} 26. fxe5 {[%clk 0:01:02]}  Rd1+ {[%clk 0:00:58]} 27. Kh2 {[%clk 0:01:00]}  Kg7 {[%clk 0:00:58]} 28. Rc7 {[%clk 0:00:54]}  Rd5 {[%clk 0:00:58]} 29. g4 {[%clk 0:00:33]}  Rxe5 {[%clk 0:00:56]} 30. Kg2 {[%clk 0:00:33]}  g5 {[%clk 0:00:52]} 31. Kf3 {[%clk 0:00:31]}  h6 {[%clk 0:00:51]} 32. Ke2 {[%clk 0:00:14]}  Rd5 {[%clk 0:00:45]} 33. Kf3 {[%clk 0:00:11]}  Nd2+ {[%clk 0:00:44]} 34. Ke2 {[%clk 0:00:12]}  Nxb3 {[%clk 0:00:41]} 35. Bf2 {[%clk 0:00:09]}  Nd4+ {[%clk 0:00:41]} 36. Ke3 {[%clk 0:00:07]}  e5 {[%clk 0:00:41]} 37. Bg3 {[%clk 0:00:07]}  Nc2+ {[%clk 0:00:38]} 38. Ke4 {[%clk 0:00:07]}  Rd4+ {[%clk 0:00:26]} 39. Kxe5 {[%clk 0:00:07]}  Kg6 {[%clk 0:00:25]} 40. Rc6+ {[%clk 0:00:07]}  Kg7 {[%clk 0:00:21]} 41. Be1 {[%clk 0:00:06]}  b3 {[%clk 0:00:20]} 42. Bf2 {[%clk 0:00:06]}  Rd2 {[%clk 0:00:20]} 43. Bxc5 {[%clk 0:00:05]}  Re2+ {[%clk 0:00:20]} 44. Kd5 {[%clk 0:00:04]}  Rd2+ {[%clk 0:00:20]} 45. Kc4 {[%clk 0:00:04]}  Rh2 {[%clk 0:00:19]} 46. Kxb3 {[%clk 0:00:02]}  Ne1 {[%clk 0:00:19]} 47. Bd4+ {[%clk 0:00:02]}  Kf8 {[%clk 0:00:19]} 48. Rc8+ {[%clk 0:00:02]}  Ke7 {[%clk 0:00:19]} 49. Kc4 {[%clk 0:00:03]}  Nf3 {[%clk 0:00:18]} 50. Rc7+ {[%clk 0:00:03]}  Ke6 {[%clk 0:00:18]} 51. Rc6+ {[%clk 0:00:03]}  Kd7 {[%clk 0:00:19]} 52. Rxh6 {[%clk 0:00:04]}  Nxd4 {[%clk 0:00:18]} 53. Kxd4 {[%clk 0:00:05]}  Rxb2 {[%clk 0:00:18]} 54. Ke5 {[%clk 0:00:05]}  Rf2 {[%clk 0:00:17]} 55. Rh5 {[%clk 0:00:04]}  Ke7 {[%clk 0:00:16]} 56. Rxg5 {[%clk 0:00:04]}  f6+ {[%clk 0:00:16]} 57. Ke4 {[%clk 0:00:03]}  fxg5 {[%clk 0:00:17]} 0-1


[Site "https://www.chess.com"]

[Event "Titled Tuesday Blitz January 17 Early 2023"]
[White "Levitan, Caleb Levi"]
[Black "Cueto, Jonny"]
[WhiteFideId "14332620"]
[BlackFideId "3300145"]
[WhiteElo "2129"]
[BlackElo "2122"]
[Result "1-0"]
[Round "11"]
[TimeControl "180+2"]
[Date "2023.01.17"]
[WhiteClock "0:00:21"]
[BlackClock "0:00:01"]

1. d4 {[%clk 0:03:00]}  e6 {[%clk 0:02:56]} 2. Bf4 {[%clk 0:03:00]}  d5 {[%clk 0:02:52]} 3. e3 {[%clk 0:03:00]}  c5 {[%clk 0:02:52]} 4. c3 {[%clk 0:03:00]}  Qb6 {[%clk 0:02:51]} 5. Qb3 {[%clk 0:02:55]}  c4 {[%clk 0:02:51]} 6. Qc2 {[%clk 0:02:55]}  g6 {[%clk 0:02:43]} 7. Nd2 {[%clk 0:02:50]}  Bg7 {[%clk 0:02:39]} 8. e4 {[%clk 0:02:50]}  Nc6 {[%clk 0:02:31]} 9. Ngf3 {[%clk 0:02:49]}  Nf6 {[%clk 0:02:24]} 10. Be2 {[%clk 0:02:41]}  dxe4 {[%clk 0:02:14]} 11. Nxc4 {[%clk 0:02:35]}  Qd8 {[%clk 0:02:08]} 12. Nd6+ {[%clk 0:02:31]}  Kf8 {[%clk 0:01:38]} 13. Nxe4 {[%clk 0:02:30]}  Qb6 {[%clk 0:01:29]} 14. Nxf6 {[%clk 0:02:19]}  Bxf6 {[%clk 0:01:30]} 15. O-O {[%clk 0:02:15]}  Bd7 {[%clk 0:01:28]} 16. Rad1 {[%clk 0:02:06]}  Ne7 {[%clk 0:01:16]} 17. Ne5 {[%clk 0:01:56]}  Bb5 {[%clk 0:01:09]} 18. Bxb5 {[%clk 0:01:45]}  Qxb5 {[%clk 0:01:10]} 19. a4 {[%clk 0:01:45]}  Qe8 {[%clk 0:00:54]} 20. Bh6+ {[%clk 0:01:36]}  Bg7 {[%clk 0:00:54]} 21. Bxg7+ {[%clk 0:01:30]}  Kxg7 {[%clk 0:00:55]} 22. Qe4 {[%clk 0:01:30]}  Nf5 {[%clk 0:00:49]} 23. Qf3 {[%clk 0:01:15]}  Qxa4 {[%clk 0:00:33]} 24. Qxb7 {[%clk 0:01:12]}  Rhf8 {[%clk 0:00:28]} 25. Ra1 {[%clk 0:01:06]}  Qc2 {[%clk 0:00:25]} 26. Nxf7 {[%clk 0:00:23]}  Rab8 {[%clk 0:00:02]} 27. Qc7 {[%clk 0:00:23]}  Rbc8 {[%clk 0:00:01]} 28. Qd7 {[%clk 0:00:21]} 1-0


[Site "https://www.chess.com"]

[Event "Titled Tuesday Blitz January 17 Early 2023"]
[White "Martinez, Shawn"]
[Black "Winkels, Marcel"]
[WhiteFideId "2039770"]
[BlackFideId "1003887"]
[WhiteElo "1881"]
[BlackElo "1960"]
[Result "1-0"]
[Round "11"]
[TimeControl "180+2"]
[Date "2023.01.17"]
[WhiteClock "0:00:16"]
[BlackClock "0:00:03"]

1. e4 {[%clk 0:02:53]}  Nf6 {[%clk 0:03:00]} 2. Nc3 {[%clk 0:02:50]}  d5 {[%clk 0:02:57]} 3. Nf3 {[%clk 0:02:49]}  dxe4 {[%clk 0:02:52]} 4. Ng5 {[%clk 0:02:43]}  Bf5 {[%clk 0:02:51]} 5. Bc4 {[%clk 0:02:42]}  e6 {[%clk 0:02:50]} 6. f3 {[%clk 0:02:42]}  Bb4 {[%clk 0:02:33]} 7. Qe2 {[%clk 0:02:24]}  Bxc3 {[%clk 0:02:30]} 8. bxc3 {[%clk 0:02:04]}  exf3 {[%clk 0:02:17]} 9. Qxf3 {[%clk 0:02:00]}  Nc6 {[%clk 0:02:14]} 10. Nxf7 {[%clk 0:01:56]}  Qe7 {[%clk 0:01:48]} 11. Nxh8 {[%clk 0:01:48]}  O-O-O {[%clk 0:01:46]} 12. d4 {[%clk 0:01:41]}  Nxd4 {[%clk 0:01:31]} 13. cxd4 {[%clk 0:01:25]}  Qb4+ {[%clk 0:01:30]} 14. c3 {[%clk 0:01:25]}  Qxc4 {[%clk 0:01:28]} 15. Nf7 {[%clk 0:01:23]}  Bg4 {[%clk 0:01:22]} 16. Qe3 {[%clk 0:01:13]}  Nd5 {[%clk 0:01:14]} 17. Qd2 {[%clk 0:01:09]}  Rf8 {[%clk 0:01:06]} 18. Ne5 {[%clk 0:01:06]}  Qa6 {[%clk 0:00:28]} 19. Nxg4 {[%clk 0:01:03]}  h5 {[%clk 0:00:27]} 20. Ne3 {[%clk 0:01:00]}  h4 {[%clk 0:00:25]} 21. Nxd5 {[%clk 0:00:47]}  exd5 {[%clk 0:00:24]} 22. Qe2 {[%clk 0:00:44]}  Qc6 {[%clk 0:00:22]} 23. Qg4+ {[%clk 0:00:41]}  Kb8 {[%clk 0:00:20]} 24. Bd2 {[%clk 0:00:39]}  Re8+ {[%clk 0:00:17]} 25. Kf1 {[%clk 0:00:28]}  Qc4+ {[%clk 0:00:16]} 26. Kg1 {[%clk 0:00:27]}  Qd3 {[%clk 0:00:13]} 27. Qf4 {[%clk 0:00:22]}  b6 {[%clk 0:00:10]} 28. Rf1 {[%clk 0:00:21]}  Re2 {[%clk 0:00:06]} 29. Bc1 {[%clk 0:00:16]}  Qxc3 {[%clk 0:00:03]} 30. h3 {[%clk 0:00:16]} 1-0


[Site "https://www.chess.com"]

[Event "Titled Tuesday Blitz January 17 Early 2023"]
[White "Thiel, Thomas"]
[Black "Torres Dominguez, David"]
[WhiteFideId "4615964"]
[BlackFideId "2220857"]
[WhiteElo "2234"]
[BlackElo "1994"]
[Result "0-1"]
[Round "11"]
[TimeControl "180+2"]
[Date "2023.01.17"]
[WhiteClock "0:00:02"]
[BlackClock "0:00:46"]

1. e4 {[%clk 0:03:00]}  Nc6 {[%clk 0:02:58]} 2. Nf3 {[%clk 0:02:58]}  e5 {[%clk 0:02:56]} 3. d4 {[%clk 0:02:55]}  exd4 {[%clk 0:02:55]} 4. Nxd4 {[%clk 0:02:56]}  Nf6 {[%clk 0:02:54]} 5. Nxc6 {[%clk 0:02:56]}  bxc6 {[%clk 0:02:53]} 6. e5 {[%clk 0:02:56]}  Qe7 {[%clk 0:02:52]} 7. Qe2 {[%clk 0:02:56]}  Nd5 {[%clk 0:02:49]} 8. h4 {[%clk 0:02:56]}  f6 {[%clk 0:02:38]} 9. c4 {[%clk 0:02:54]}  Ba6 {[%clk 0:02:37]} 10. Rh3 {[%clk 0:02:54]}  fxe5 {[%clk 0:02:31]} 11. Bg5 {[%clk 0:02:54]}  Nf6 {[%clk 0:02:29]} 12. Re3 {[%clk 0:02:53]}  d6 {[%clk 0:02:21]} 13. Nc3 {[%clk 0:02:46]}  O-O-O {[%clk 0:02:16]} 14. Ne4 {[%clk 0:02:36]}  d5 {[%clk 0:02:11]} 15. Nd2 {[%clk 0:01:57]}  Qb4 {[%clk 0:02:04]} 16. Rb3 {[%clk 0:01:51]}  Bxc4 {[%clk 0:01:55]} 17. Qe3 {[%clk 0:00:50]}  Bxb3 {[%clk 0:01:49]} 18. axb3 {[%clk 0:00:51]}  Bc5 {[%clk 0:01:40]} 19. Qh3+ {[%clk 0:00:50]}  Kb8 {[%clk 0:01:34]} 20. Ra4 {[%clk 0:00:47]}  Qb6 {[%clk 0:01:29]} 21. b4 {[%clk 0:00:34]}  Bxf2+ {[%clk 0:01:26]} 22. Kd1 {[%clk 0:00:31]}  Bd4 {[%clk 0:01:15]} 23. Qa3 {[%clk 0:00:22]}  Rhf8 {[%clk 0:01:10]} 24. Ra6 {[%clk 0:00:14]}  Qb7 {[%clk 0:01:03]} 25. Nb3 {[%clk 0:00:05]}  Bb6 {[%clk 0:00:58]} 26. Nc5 {[%clk 0:00:01]}  Bxc5 {[%clk 0:00:51]} 27. bxc5 {[%clk 0:00:02]}  Ne4 {[%clk 0:00:46]} 0-1


[Site "https://www.chess.com"]

[Event "Titled Tuesday Blitz January 17 Early 2023"]
[White "Kornyukov, Alexey"]
[Black "Kiseleva, Arina"]
[WhiteFideId "4150457"]
[BlackFideId "4164989"]
[WhiteElo "2452"]
[BlackElo "1962"]
[Result "1-0"]
[Round "11"]
[TimeControl "180+2"]
[Date "2023.01.17"]
[WhiteClock "0:00:30"]
[BlackClock "0:00:01"]

1. e4 {[%clk 0:03:00]}  c6 {[%clk 0:03:00]} 2. d4 {[%clk 0:02:57]}  d5 {[%clk 0:03:00]} 3. Nc3 {[%clk 0:02:56]}  dxe4 {[%clk 0:03:00]} 4. Nxe4 {[%clk 0:02:56]}  Nf6 {[%clk 0:03:01]} 5. Qe2 {[%clk 0:02:56]}  Nxe4 {[%clk 0:02:57]} 6. Qxe4 {[%clk 0:02:55]}  Qd5 {[%clk 0:02:55]} 7. Qxd5 {[%clk 0:02:55]}  cxd5 {[%clk 0:02:55]} 8. Bb5+ {[%clk 0:02:55]}  Bd7 {[%clk 0:02:50]} 9. Bxd7+ {[%clk 0:02:55]}  Nxd7 {[%clk 0:02:49]} 10. Nf3 {[%clk 0:02:55]}  e6 {[%clk 0:02:47]} 11. Bd2 {[%clk 0:02:54]}  Bd6 {[%clk 0:02:45]} 12. O-O {[%clk 0:02:52]}  f6 {[%clk 0:02:37]} 13. b3 {[%clk 0:02:51]}  Kf7 {[%clk 0:02:35]} 14. c4 {[%clk 0:02:49]}  dxc4 {[%clk 0:02:32]} 15. bxc4 {[%clk 0:02:48]}  e5 {[%clk 0:02:25]} 16. c5 {[%clk 0:02:37]}  Bc7 {[%clk 0:02:21]} 17. Rac1 {[%clk 0:02:28]}  exd4 {[%clk 0:01:55]} 18. Nxd4 {[%clk 0:02:23]}  Ne5 {[%clk 0:01:54]} 19. Nb5 {[%clk 0:02:20]}  Rad8 {[%clk 0:01:36]} 20. Be3 {[%clk 0:02:13]}  Bb8 {[%clk 0:01:34]} 21. Rfd1 {[%clk 0:02:04]}  Ke7 {[%clk 0:01:21]} 22. Nd6 {[%clk 0:01:57]}  b6 {[%clk 0:00:53]} 23. Nf5+ {[%clk 0:01:45]}  Kf7 {[%clk 0:00:33]} 24. cxb6 {[%clk 0:01:39]}  axb6 {[%clk 0:00:29]} 25. Bxb6 {[%clk 0:01:36]}  Rxd1+ {[%clk 0:00:27]} 26. Rxd1 {[%clk 0:01:32]}  g6 {[%clk 0:00:26]} 27. Ne3 {[%clk 0:01:30]}  Rc8 {[%clk 0:00:22]} 28. a4 {[%clk 0:01:08]}  Ke6 {[%clk 0:00:13]} 29. g3 {[%clk 0:01:02]}  Rc3 {[%clk 0:00:06]} 30. a5 {[%clk 0:00:59]}  Ra3 {[%clk 0:00:06]} 31. Rc1 {[%clk 0:00:52]}  Bd6 {[%clk 0:00:03]} 32. Nc4 {[%clk 0:00:44]}  Nxc4 {[%clk 0:00:02]} 33. Rxc4 {[%clk 0:00:44]}  Ra1+ {[%clk 0:00:03]} 34. Kg2 {[%clk 0:00:43]}  Kd5 {[%clk 0:00:04]} 35. Rc8 {[%clk 0:00:43]}  Bb4 {[%clk 0:00:03]} 36. Ra8 {[%clk 0:00:42]}  Kc6 {[%clk 0:00:03]} 37. Rc8+ {[%clk 0:00:39]}  Kb5 {[%clk 0:00:02]} 38. Rc7 {[%clk 0:00:34]}  h5 {[%clk 0:00:02]} 39. Rg7 {[%clk 0:00:32]}  g5 {[%clk 0:00:01]} 40. Rg6 {[%clk 0:00:30]} 1-0


[Site "https://www.chess.com"]

[Event "Titled Tuesday Blitz January 17 Early 2023"]
[White "Liimatainen, Jero"]
[Black "Adithya A Chullikkad"]
[WhiteFideId "509531"]
[BlackFideId "45078734"]
[WhiteElo "1948"]
[BlackElo "2259"]
[Result "1-0"]
[Round "11"]
[TimeControl "180+2"]
[Date "2023.01.17"]
[WhiteClock "0:02:06"]
[BlackClock "0:02:29"]

1. e4 {[%clk 0:02:44]}  e5 {[%clk 0:02:59]} 2. Nf3 {[%clk 0:02:44]}  Nc6 {[%clk 0:02:57]} 3. Bb5 {[%clk 0:02:43]}  a6 {[%clk 0:02:57]} 4. Ba4 {[%clk 0:02:43]}  Nf6 {[%clk 0:02:57]} 5. d3 {[%clk 0:02:43]}  b5 {[%clk 0:02:56]} 6. Bb3 {[%clk 0:02:43]}  Bc5 {[%clk 0:02:57]} 7. c3 {[%clk 0:02:42]}  d6 {[%clk 0:02:57]} 8. O-O {[%clk 0:02:42]}  h6 {[%clk 0:02:55]} 9. h3 {[%clk 0:02:41]}  O-O {[%clk 0:02:55]} 10. Re1 {[%clk 0:02:42]}  Bb6 {[%clk 0:02:55]} 11. Nbd2 {[%clk 0:02:42]}  Re8 {[%clk 0:02:53]} 12. Nf1 {[%clk 0:02:43]}  Be6 {[%clk 0:02:54]} 13. Ng3 {[%clk 0:02:42]}  Ne7 {[%clk 0:02:49]} 14. Bxe6 {[%clk 0:02:42]}  fxe6 {[%clk 0:02:49]} 15. d4 {[%clk 0:02:43]}  exd4 {[%clk 0:02:48]} 16. cxd4 {[%clk 0:02:42]}  Ng6 {[%clk 0:02:46]} 17. Be3 {[%clk 0:02:18]}  e5 {[%clk 0:02:39]} 18. Qc2 {[%clk 0:02:15]}  exd4 {[%clk 0:02:35]} 19. Nxd4 {[%clk 0:02:13]}  Bxd4 {[%clk 0:02:34]} 20. Bxd4 {[%clk 0:02:12]}  Kh8 {[%clk 0:02:32]} 21. Rad1 {[%clk 0:02:10]}  Qe7 {[%clk 0:02:30]} 22. e5 {[%clk 0:02:08]}  dxe5 {[%clk 0:02:29]} 23. Qxg6 {[%clk 0:02:06]} 1-0


[Site "https://www.chess.com"]

[Event "Titled Tuesday Blitz January 17 Early 2023"]
[White "Garmash, Aliona"]
[Black "Better_Chess_Faster"]
[WhiteFideId "34127620"]
[WhiteElo "2039"]
[BlackElo "2030"]
[Result "0-1"]
[Round "11"]
[TimeControl "180+2"]
[Date "2023.01.17"]
[WhiteClock "0:00:01"]
[BlackClock "0:00:02"]

1. d4 {[%clk 0:03:00]}  Nf6 {[%clk 0:02:59]} 2. c4 {[%clk 0:02:59]}  c5 {[%clk 0:02:58]} 3. d5 {[%clk 0:02:59]}  b5 {[%clk 0:02:58]} 4. cxb5 {[%clk 0:02:56]}  a6 {[%clk 0:02:58]} 5. bxa6 {[%clk 0:02:56]}  g6 {[%clk 0:02:59]} 6. Nc3 {[%clk 0:02:55]}  Bg7 {[%clk 0:02:59]} 7. Nf3 {[%clk 0:02:54]}  O-O {[%clk 0:02:57]} 8. a4 {[%clk 0:02:51]}  e6 {[%clk 0:02:53]} 9. e4 {[%clk 0:02:38]}  exd5 {[%clk 0:02:53]} 10. exd5 {[%clk 0:02:38]}  Re8+ {[%clk 0:02:53]} 11. Be2 {[%clk 0:02:38]}  d6 {[%clk 0:02:43]} 12. O-O {[%clk 0:02:34]}  Nxa6 {[%clk 0:02:42]} 13. Bf4 {[%clk 0:02:23]}  Nb4 {[%clk 0:02:38]} 14. h3 {[%clk 0:02:20]}  Bb7 {[%clk 0:02:35]} 15. Bc4 {[%clk 0:02:16]}  Re4 {[%clk 0:02:29]} 16. Nxe4 {[%clk 0:02:13]}  Nxe4 {[%clk 0:02:27]} 17. Qe2 {[%clk 0:02:00]}  Nf6 {[%clk 0:02:05]} 18. Rfd1 {[%clk 0:01:58]}  Qd7 {[%clk 0:01:59]} 19. Ra3 {[%clk 0:01:46]}  Nfxd5 {[%clk 0:01:47]} 20. Bg3 {[%clk 0:01:35]}  Qc6 {[%clk 0:01:30]} 21. Bb5 {[%clk 0:01:23]}  Qc7 {[%clk 0:01:22]} 22. Ng5 {[%clk 0:01:13]}  Bd4 {[%clk 0:01:13]} 23. Ne4 {[%clk 0:01:06]}  Rd8 {[%clk 0:01:05]} 24. Bh4 {[%clk 0:00:22]}  Rc8 {[%clk 0:00:51]} 25. Qd2 {[%clk 0:00:18]}  Kg7 {[%clk 0:00:43]} 26. Qg5 {[%clk 0:00:17]}  h6 {[%clk 0:00:38]} 27. Qc1 {[%clk 0:00:17]}  Bc6 {[%clk 0:00:34]} 28. Bxc6 {[%clk 0:00:16]}  Qxc6 {[%clk 0:00:33]} 29. Nc3 {[%clk 0:00:15]}  Qd7 {[%clk 0:00:23]} 30. Bg3 {[%clk 0:00:14]}  Re8 {[%clk 0:00:21]} 31. Nxd5 {[%clk 0:00:14]}  Nxd5 {[%clk 0:00:21]} 32. a5 {[%clk 0:00:13]}  Ra8 {[%clk 0:00:19]} 33. a6 {[%clk 0:00:11]}  Ra7 {[%clk 0:00:18]} 34. Qc4 {[%clk 0:00:10]}  Nb6 {[%clk 0:00:15]} 35. Qc2 {[%clk 0:00:07]}  d5 {[%clk 0:00:15]} 36. Qe2 {[%clk 0:00:05]}  Bf6 {[%clk 0:00:14]} 37. Qe3 {[%clk 0:00:04]}  d4 {[%clk 0:00:13]} 38. Qf3 {[%clk 0:00:04]}  c4 {[%clk 0:00:13]} 39. Bf4 {[%clk 0:00:03]}  d3 {[%clk 0:00:10]} 40. Qe3 {[%clk 0:00:02]}  Bd4 {[%clk 0:00:09]} 41. Bxh6+ {[%clk 0:00:01]}  Kh7 {[%clk 0:00:08]} 42. Qf4 {[%clk 0:00:02]}  Nd5 {[%clk 0:00:07]} 43. Qh4 {[%clk 0:00:01]}  Kg8 {[%clk 0:00:06]} 44. Bg5 {[%clk 0:00:01]}  Qf5 {[%clk 0:00:05]} 45. Qxd4 {[%clk 0:00:01]}  Qxg5 {[%clk 0:00:04]} 46. Qxa7 {[%clk 0:00:01]}  Nf4 {[%clk 0:00:03]} 47. Qa8+ {[%clk 0:00:01]}  Kg7 {[%clk 0:00:03]} 48. Qf3 {[%clk 0:00:01]}  f5 {[%clk 0:00:02]} 0-1


[Site "https://www.chess.com"]

[Event "Titled Tuesday Blitz January 17 Early 2023"]
[White "Dilmukhametov, Artur"]
[Black "Stead, Kerry"]
[WhiteFideId "24179922"]
[BlackFideId "3202577"]
[WhiteElo "2276"]
[BlackElo "1908"]
[Result "1-0"]
[Round "11"]
[TimeControl "180+2"]
[Date "2023.01.17"]
[WhiteClock "0:00:28"]
[BlackClock "0:00:01"]

1. d4 {[%clk 0:03:00]}  c5 {[%clk 0:02:43]} 2. d5 {[%clk 0:02:58]}  f5 {[%clk 0:02:41]} 3. c4 {[%clk 0:02:58]}  g6 {[%clk 0:02:38]} 4. Nc3 {[%clk 0:02:54]}  Bg7 {[%clk 0:02:38]} 5. Bg5 {[%clk 0:02:52]}  Bxc3+ {[%clk 0:02:36]} 6. bxc3 {[%clk 0:02:51]}  Qa5 {[%clk 0:02:37]} 7. Qc2 {[%clk 0:02:49]}  d6 {[%clk 0:02:35]} 8. e3 {[%clk 0:02:49]}  Nd7 {[%clk 0:02:34]} 9. Nf3 {[%clk 0:02:49]}  Ngf6 {[%clk 0:02:21]} 10. Bd3 {[%clk 0:02:38]}  Ne5 {[%clk 0:02:19]} 11. Nxe5 {[%clk 0:02:38]}  dxe5 {[%clk 0:02:20]} 12. O-O {[%clk 0:02:28]}  e4 {[%clk 0:02:13]} 13. Be2 {[%clk 0:02:26]}  Bd7 {[%clk 0:02:11]} 14. Bxf6 {[%clk 0:02:21]}  exf6 {[%clk 0:02:10]} 15. Rfb1 {[%clk 0:02:20]}  O-O-O {[%clk 0:02:08]} 16. Qb3 {[%clk 0:02:17]}  Qa6 {[%clk 0:02:08]} 17. a4 {[%clk 0:02:15]}  g5 {[%clk 0:01:44]} 18. f3 {[%clk 0:02:01]}  h5 {[%clk 0:01:34]} 19. fxe4 {[%clk 0:01:58]}  fxe4 {[%clk 0:01:35]} 20. Qc2 {[%clk 0:01:55]}  Rde8 {[%clk 0:01:32]} 21. Ra2 {[%clk 0:01:47]}  Kb8 {[%clk 0:01:24]} 22. Qb3 {[%clk 0:01:44]}  Bc8 {[%clk 0:01:23]} 23. Qa3 {[%clk 0:01:41]}  Qd6 {[%clk 0:01:22]} 24. Rab2 {[%clk 0:01:40]}  Ka8 {[%clk 0:01:22]} 25. a5 {[%clk 0:01:38]}  Re7 {[%clk 0:01:19]} 26. a6 {[%clk 0:01:37]}  b6 {[%clk 0:01:19]} 27. Qa4 {[%clk 0:01:35]}  f5 {[%clk 0:01:04]} 28. Qc2 {[%clk 0:01:23]}  f4 {[%clk 0:00:58]} 29. exf4 {[%clk 0:01:21]}  gxf4 {[%clk 0:00:59]} 30. Rf1 {[%clk 0:01:20]}  Rg8 {[%clk 0:00:56]} 31. Qc1 {[%clk 0:01:17]}  Reg7 {[%clk 0:00:36]} 32. Bxh5 {[%clk 0:01:14]}  f3 {[%clk 0:00:33]} 33. g3 {[%clk 0:01:09]}  Rxg3+ {[%clk 0:00:32]} 34. hxg3 {[%clk 0:01:08]}  Qxg3+ {[%clk 0:00:31]} 35. Kh1 {[%clk 0:01:08]}  Bh3 {[%clk 0:00:28]} 36. Rg1 {[%clk 0:01:05]}  Bg2+ {[%clk 0:00:27]} 37. Rgxg2 {[%clk 0:01:01]}  fxg2+ {[%clk 0:00:26]} 38. Kg1 {[%clk 0:01:00]}  Rh8 {[%clk 0:00:21]} 39. Rxg2 {[%clk 0:00:53]}  Qd3 {[%clk 0:00:15]} 40. Qf4 {[%clk 0:00:50]}  Qb1+ {[%clk 0:00:12]} 41. Qf1 {[%clk 0:00:48]}  Qxf1+ {[%clk 0:00:07]} 42. Kxf1 {[%clk 0:00:47]}  Kb8 {[%clk 0:00:08]} 43. Be2 {[%clk 0:00:43]}  Kc7 {[%clk 0:00:07]} 44. Rg4 {[%clk 0:00:42]}  Re8 {[%clk 0:00:06]} 45. Kf2 {[%clk 0:00:42]}  Kd6 {[%clk 0:00:05]} 46. Ke3 {[%clk 0:00:42]}  Rh8 {[%clk 0:00:03]} 47. Rxe4 {[%clk 0:00:41]}  Rh3+ {[%clk 0:00:03]} 48. Bf3 {[%clk 0:00:41]}  b5 {[%clk 0:00:01]} 49. Re6+ {[%clk 0:00:41]}  Kd7 {[%clk 0:00:01]} 50. cxb5 {[%clk 0:00:35]}  Rh2 {[%clk 0:00:01]} 51. c4 {[%clk 0:00:28]} 1-0


[Site "https://www.chess.com"]